fUST/lending_fUST_20250708
["ID","MTS","AMOUNT","RATE_DAILY","PERIOD"]
[370314358,1751949046489,-460.0,0.00019452,2]
[370314359,1751949046499,-460.0,0.00019452,2]
[370314360,1751949046509,-460.0,0.00019452,2]
[370314361,1751949046518,-1770.45,0.00019452,2]
[370314362,1751949046527,-460.0,0.00019452,2]
[370314363,1751949046537,-460.0,0.00019452,2]
[370314364,1751949046546,-460.0,0.00019452,2]
[370314365,1751949046555,-460.0,0.00019452,2]
[370314366,1751949046565,-460.0,0.00019452,2]
[370314367,1751949046574,-462.46168213,0.00019452,2]
[370314368,1751949046583,-553.63,0.00019452,2]
[370314369,1751949046593,-460.0,0.00019452,2]
[370314370,1751949046603,-460.0,0.00019452,2]
[370314371,1751949046613,-460.0,0.00019452,2]
[370314372,1751949046622,-461.72677275,0.00019452,2]
[370314373,1751949046631,-460.0,0.00019452,2]
[370314374,1751949046641,-1121.93,0.00019452,2]
[370314375,1751949046650,-469.91098441,0.00019452,2]
[370314376,1751949046660,-460.0,0.00019452,2]
[370314377,1751949046669,-460.0,0.00019452,2]
[370314378,1751949046679,-1955.51,0.00019452,2]
[370314379,1751949046690,-460.0,0.00019452,2]
[370314380,1751949046700,-460.18496427,0.00019452,2]
[370314381,1751949046709,-460.0,0.00019452,2]
[370314382,1751949046718,-1231.76,0.00019452,2]
[370314383,1751949046727,-460.0,0.00019452,2]
[370314384,1751949046737,-460.0,0.00019452,2]
[370314385,1751949046747,-460.0,0.00019452,2]
[370314386,1751949046756,-460.0,0.00019452,2]
[370314387,1751949046765,-460.0,0.00019452,2]
[370314388,1751949046774,-490.0,0.00019452,2]
[370314389,1751949046784,-460.0,0.00019452,2]
[370314390,1751949046794,-460.0,0.00019452,2]
[370314391,1751949046803,-460.0,0.00019452,2]
[370314392,1751949046813,-460.0,0.00019452,2]
[370314393,1751949046823,-460.0,0.00019452,2]
[370314394,1751949046832,-460.0,0.00019452,2]
[370314395,1751949046841,-1315.87,0.00019452,2]
[370314396,1751949046855,-460.0,0.00019452,2]
[370314397,1751949046864,-460.0,0.00019452,2]
[370314398,1751949046873,-360.44300163,0.00019452,2]
[370314399,1751949046883,-1350.63,0.00019452,2]
[370314400,1751949046893,-464.35447093,0.00019452,2]
[370314401,1751949046902,-460.0,0.00019452,2]
[370314402,1751949046911,-463.21588621,0.00019452,2]
[370314403,1751949046922,-460.0,0.00019452,2]
[370314404,1751949046932,-460.0,0.00019452,2]
[370314405,1751949046941,-460.0,0.00019452,2]
[370314406,1751949046950,-479.37845129,0.00019452,2]
[370314407,1751949046960,-464.30845221,0.00019452,2]
[370314408,1751949046969,-462.67746002,0.00019452,2]
[370314409,1751949046978,-460.0,0.00019452,2]
[370314410,1751949046987,-488.57757659,0.00019452,2]
[370314411,1751949046996,-460.0,0.00019452,2]
[370314412,1751949047005,-460.0,0.00019452,2]
[370314413,1751949047014,-460.0,0.00019452,2]
[370314414,1751949047023,-463.08396074,0.00019452,2]
[370314415,1751949047032,-460.0,0.00019452,2]
[370314416,1751949047041,-460.0,0.00019452,2]
[370314417,1751949047051,-460.0,0.00019452,2]
[370314418,1751949047060,-514.76,0.00019452,2]
[370314419,1751949047069,-460.0,0.00019452,2]
[370314420,1751949047077,-460.0,0.00019452,2]
[370314421,1751949047086,-465.82080286,0.00019452,2]
[370314422,1751949047095,-872.98,0.00019452,2]
[370314423,1751949047105,-463.70617743,0.00019452,2]
[370314424,1751949047114,-472.07602775,0.00019452,2]
[370314425,1751949047124,-460.0,0.00019452,2]
[370314426,1751949047133,-460.0,0.00019452,2]
[370314427,1751949047143,-1817.93,0.00019452,2]
[370314428,1751949047152,-460.0,0.00019452,2]
[370314429,1751949047163,-460.0,0.00019452,2]
[370314430,1751949047173,-460.0,0.00019452,2]
[370314431,1751949047183,-460.0,0.00019452,2]
[370314432,1751949047193,-460.0,0.00019452,2]
[370314433,1751949047204,-460.0,0.00019452,2]
[370314434,1751949047309,-504.34,0.00019452,2]
[370314435,1751949047319,-1558.15,0.00019452,2]
[370314436,1751949047329,-500.0,0.00019452,2]
[370314437,1751949047339,-460.0,0.00019452,2]
[370314438,1751949047348,-187.61887503,0.00019452,2]
[370314439,1751949047357,-460.0,0.00019452,2]
[370314440,1751949047367,-460.0,0.00019452,2]
[370314441,1751949047376,-460.0,0.00019452,2]
[370314442,1751949047385,-460.0,0.00019452,2]
[370314443,1751949047395,-460.0,0.00019452,2]
[370314444,1751949047404,-460.0,0.00019452,2]
[370314445,1751949047414,-460.0,0.00019452,2]
[370314446,1751949047424,-460.0,0.00019452,2]
[370314447,1751949047434,-460.0,0.00019452,2]
[370314448,1751949047444,-460.0,0.00019452,2]
[370314449,1751949047454,-3358.32,0.00019452,2]
[370314450,1751949047463,-460.0,0.00019452,2]
[370314451,1751949047473,-460.0,0.00019452,2]
[370314452,1751949047483,-460.0,0.00019452,2]
[370314453,1751949047493,-460.0,0.00019452,2]
[370314454,1751949047503,-460.0,0.00019452,2]
[370314455,1751949047514,-460.0,0.00019452,2]
[370314456,1751949047524,-460.0,0.00019452,2]
[370314457,1751949047534,-460.0,0.00019452,2]
[370314458,1751949047543,-460.0,0.00019452,2]
[370314459,1751949047553,-460.0,0.00019452,2]
[370314460,1751949047562,-460.0,0.00019452,2]
[370314461,1751949047572,-460.0,0.00019452,2]
[370314462,1751949047583,-460.0,0.00019452,2]
[370314463,1751949047593,-460.0,0.00019452,2]
[370314464,1751949047603,-460.0,0.00019452,2]
[370314465,1751949047612,-460.0,0.00019452,2]
[370314466,1751949047622,-460.0,0.00019452,2]
[370314467,1751949047631,-460.0,0.00019452,2]
[370314468,1751949047641,-460.0,0.00019452,2]
[370314469,1751949047651,-460.0,0.00019452,2]
[370314470,1751949047660,-460.0,0.00019452,2]
[370314471,1751949047669,-371.69228205,0.00019452,2]
[370314472,1751949047679,-460.0,0.00019452,2]
[370314473,1751949047689,-584.02,0.00019452,2]
[370314474,1751949047698,-467.10319287,0.00019452,2]
[370314475,1751949047708,-1161.57,0.00019452,2]
[370314476,1751949047717,-2667.14,0.00019452,2]
[370314477,1751949047729,-460.0,0.00019452,2]
[370314478,1751949047738,-460.0,0.00019452,2]
[370314479,1751949047747,-460.0,0.00019452,2]
[370314480,1751949047757,-460.0,0.00019452,2]
[370314481,1751949047766,-460.0,0.00019452,2]
[370314482,1751949047775,-460.0,0.00019452,2]
[370314483,1751949047785,-460.0,0.00019452,2]
[370314484,1751949047795,-2801.69,0.00019452,2]
[370314485,1751949047804,-522.77007586,0.00019452,2]
[370314486,1751949047814,-460.0,0.00019452,2]
[370314487,1751949047823,-460.0,0.00019452,2]
[370314488,1751949047833,-469.37,0.00019452,2]
[370314489,1751949047842,-460.0,0.00019452,2]
[370314490,1751949047855,-460.0,0.00019452,2]
[370314491,1751949047865,-460.0,0.00019452,2]
[370314492,1751949047874,-460.0,0.00019452,2]
[370314493,1751949047884,-460.0,0.00019452,2]
[370314494,1751949047894,-460.0,0.00019452,2]
[370314495,1751949047904,-465.56444294,0.00019452,2]
[370314496,1751949047914,-460.0,0.00019452,2]
[370314497,1751949047923,-460.0,0.00019452,2]
[370314498,1751949047935,-881.46,0.00019452,2]
[370314499,1751949047944,-460.0,0.00019452,2]
[370314500,1751949047953,-460.0,0.00019452,2]
[370314501,1751949047963,-461.82709399,0.00019452,2]
[370314502,1751949047972,-460.0,0.00019452,2]
[370314503,1751949047983,-460.0,0.00019452,2]
[370314504,1751949047993,-460.0,0.00019452,2]
[370314505,1751949048004,-460.0,0.00019452,2]
[370314506,1751949048013,-460.0,0.00019452,2]
[370314507,1751949048023,-460.0,0.00019452,2]
[370314508,1751949048033,-460.0,0.00019452,2]
[370314509,1751949048043,-460.0,0.00019452,2]
[370314510,1751949048052,-460.0,0.00019452,2]
[370314511,1751949048062,-460.0,0.00019452,2]
[370314512,1751949048071,-460.0,0.00019452,2]
[370314513,1751949048080,-460.0,0.00019452,2]
[370314514,1751949048090,-460.0,0.00019452,2]
[370314515,1751949048100,-460.0,0.00019452,2]
[370314516,1751949048109,-314.0,0.00019465,2]
[370314517,1751949048119,-2186.85951845,0.00019467,2]
[370314518,1751949048128,-503.05145394,0.00019473,2]
[370314519,1751949048138,-500.0,0.00019473,2]
[370314520,1751949048148,-574.16048143,0.00019473,2]
[370314521,1751949048158,-500.0,0.00019473,2]
[370314522,1751949048167,-500.22557926,0.00019473,2]
[370314523,1751949048177,-500.0,0.00019473,2]
[370314524,1751949048187,-500.0,0.00019473,2]
[370314525,1751949048196,-500.0,0.00019473,2]
[370314526,1751949048206,-548.95884419,0.00019473,2]
[370314527,1751949048216,-500.0,0.00019473,2]
[370314528,1751949048225,-500.0,0.00019473,2]
[370314529,1751949048234,-600.0,0.00019473,2]
[370314530,1751949048244,-314.0,0.00019509,2]
[370314531,1751949048254,-314.0,0.00019509,2]
[370314532,1751949048263,-314.0,0.00019526,2]
[370314533,1751949048272,-314.0,0.00019538,2]
[370314534,1751949048282,-314.0,0.00019544,2]
[370314535,1751949048291,-926.0,0.00019552,2]
[370314536,1751949048301,-837.89306043,0.00019557,2]
[370314537,1751949048311,-160.0,0.00019557,2]
[370314538,1751949048320,-215.2437778,0.00019557,2]
[370314539,1751949048330,-160.0,0.00019557,2]
[370314540,1751949048339,-230.51100374,0.00019557,2]
[370314541,1751949048349,-12586.7184932,0.00019557,2]
[370314542,1751949048358,-848.40570879,0.00019557,2]
[370314543,1751949048368,-160.0,0.00019559,2]
[370314544,1751949048377,-214.10276668,0.00019559,2]
[370314545,1751949048386,-160.0,0.00019559,2]
[370314546,1751949048395,-160.0,0.00019559,2]
[370314547,1751949048405,-500.0,0.00019621,2]
[370314548,1751949048415,-773.12813538,0.00019626,2]
[370314549,1751949048425,-2186.85951845,0.00019626,2]
[370314550,1751949048435,-314.0,0.00019626,2]
[370314551,1751949048444,-235.0,0.00019643,2]
[370314552,1751949048454,-314.0,0.00019646,2]
[370314553,1751949048464,-502.51817603,0.00019661,2]
[370314554,1751949048474,-500.0,0.00019661,2]
[370314555,1751949048484,-500.0,0.00019661,2]
[370314556,1751949048493,-500.71541439,0.00019661,2]
[370314557,1751949048503,-501.56992579,0.00019661,2]
[370314558,1751949048512,-500.0,0.00019661,2]
[370314559,1751949048522,-501.51677689,0.00019661,2]
[370314560,1751949048531,-254.540452,0.00019661,2]
[370314561,1751949048540,-314.0,0.00019669,2]
[370314562,1751949048550,-1004.62215437,0.00019721,2]
[370314563,1751949048560,-509.40328434,0.00019721,2]
[370314564,1751949048569,-155.0,0.00019725,2]
[370314565,1751949048579,-540.0,0.00019726,2]
[370314566,1751949048589,-460.0,0.00019726,2]
[370314567,1751949048600,-471.08367035,0.00019726,2]
[370314568,1751949048609,-466.16692243,0.00019726,2]
[370314569,1751949048620,-462.36,0.00019726,2]
[370314570,1751949048630,-460.0,0.00019726,2]
[370314571,1751949048725,-460.0,0.00019726,2]
[370314572,1751949048736,-460.0,0.00019726,2]
[370314573,1751949048746,-464.26759024,0.00019726,2]
[370314574,1751949048756,-543.36472918,0.00019726,2]
[370314575,1751949048766,-460.0,0.00019726,2]
[370314576,1751949048776,-460.0,0.00019726,2]
[370314577,1751949048786,-460.0,0.00019726,2]
[370314578,1751949048795,-460.0,0.00019726,2]
[370314579,1751949048805,-465.23106461,0.00019726,2]
[370314580,1751949048815,-151.0,0.00019726,2]
[370314581,1751949048824,-605.38,0.00019726,2]
[370314582,1751949048834,-460.0,0.00019726,2]
[370314583,1751949048843,-460.0,0.00019726,2]
[370314584,1751949048856,-460.0,0.00019726,2]
[370314585,1751949048866,-471.10112072,0.00019726,2]
[370314586,1751949048876,-492.32,0.00019726,2]
[370314587,1751949048886,-558.58,0.00019726,2]
[370314588,1751949048897,-460.0,0.00019726,2]
[370314589,1751949048907,-502.93754822,0.00019726,2]
[370314590,1751949048917,-194.78684376,0.00019726,2]
[370314591,1751949048927,-466.79825437,0.00019726,2]
[370314592,1751949048938,-460.0,0.00019726,2]
[370314593,1751949048948,-460.0,0.00019726,2]
[370314594,1751949048958,-460.0,0.00019726,2]
[370314595,1751949048968,-484.11034715,0.00019726,2]
[370314596,1751949048978,-460.0,0.00019726,2]
[370314597,1751949048989,-460.0,0.00019726,2]
[370314598,1751949048999,-460.0,0.00019726,2]
[370314599,1751949049008,-382.82030276,0.00019726,2]
[370314600,1751949049018,-560.92054938,0.00019726,2]
[370314601,1751949049027,-180.54855024,0.00019726,2]
[370314602,1751949049037,-467.90405685,0.00019726,2]
[370314603,1751949049047,-162.11622181,0.00019726,2]
[370314604,1751949049056,-460.0,0.00019726,2]
[370314605,1751949049066,-460.0,0.00019726,2]
[370314606,1751949049076,-460.0,0.00019726,2]
[370314607,1751949049085,-420.98714835,0.00019726,2]
[370314608,1751949049095,-485.3,0.00019726,2]
[370314609,1751949049105,-460.0,0.00019726,2]
[370314610,1751949049114,-460.0,0.00019726,2]
[370314611,1751949049124,-460.0,0.00019726,2]
[370314612,1751949049133,-460.0,0.00019726,2]
[370314613,1751949049143,-460.0,0.00019726,2]
[370314614,1751949049153,-460.0,0.00019726,2]
[370314615,1751949049162,-529.02,0.00019726,2]
[370314616,1751949049172,-527.9,0.00019726,2]
[370314617,1751949049181,-471.06856635,0.00019726,2]
[370314618,1751949049191,-486.96353241,0.00019726,2]
[370314619,1751949049201,-461.98474876,0.00019726,2]
[370314620,1751949049211,-460.0,0.00019726,2]
[370314621,1751949049220,-462.29544364,0.00019726,2]
[370314622,1751949049231,-460.0,0.00019726,2]
[370314623,1751949049240,-460.0,0.00019726,2]
[370314624,1751949049250,-460.0,0.00019726,2]
[370314625,1751949049261,-460.0,0.00019726,2]
[370314626,1751949049270,-460.0,0.00019726,2]
[370314627,1751949049281,-374.20561355,0.00019726,2]
[370314628,1751949049291,-460.0,0.00019726,2]
[370314629,1751949049300,-505.13378832,0.00019726,2]
[370314630,1751949049310,-454.67813076,0.00019726,2]
[370314631,1751949049320,-460.0,0.00019726,2]
[370314632,1751949049330,-466.55599011,0.00019726,2]
[370314633,1751949049340,-460.0,0.00019726,2]
[370314634,1751949049350,-460.0,0.00019726,2]
[370314635,1751949049359,-460.0,0.00019726,2]
[370314636,1751949049370,-462.47496708,0.00019726,2]
[370314637,1751949049380,-460.0,0.00019726,2]
[370314638,1751949049390,-460.0,0.00019726,2]
[370314639,1751949049400,-460.0,0.00019726,2]
[370314640,1751949049410,-460.0,0.00019726,2]
[370314641,1751949049420,-460.0,0.00019726,2]
[370314642,1751949049430,-460.0,0.00019726,2]
[370314643,1751949049440,-460.0,0.00019726,2]
[370314644,1751949049449,-460.0,0.00019726,2]
[370314645,1751949049460,-460.0,0.00019726,2]
[370314646,1751949049469,-460.0,0.00019726,2]
[370314647,1751949049480,-463.54414714,0.00019726,2]
[370314648,1751949049490,-397.64294546,0.00019726,2]
[370314649,1751949049499,-460.0,0.00019726,2]
[370314650,1751949049509,-460.0,0.00019726,2]
[370314651,1751949049519,-460.0,0.00019726,2]
[370314652,1751949049529,-460.0,0.00019726,2]
[370314653,1751949049539,-470.89853775,0.00019726,2]
[370314654,1751949049548,-460.0,0.00019726,2]
[370314655,1751949049558,-460.0,0.00019726,2]
[370314656,1751949049567,-460.0,0.00019726,2]
[370314657,1751949049577,-460.0,0.00019726,2]
[370314658,1751949049586,-460.0,0.00019726,2]
[370314659,1751949049596,-460.0,0.00019726,2]
[370314660,1751949049606,-460.0,0.00019726,2]
[370314661,1751949049616,-460.0,0.00019726,2]
[370314662,1751949049625,-460.0,0.00019726,2]
[370314663,1751949049635,-460.0,0.00019726,2]
[370314664,1751949049645,-460.0,0.00019726,2]
[370314665,1751949049655,-460.0,0.00019726,2]
[370314666,1751949049664,-460.0,0.00019726,2]
[370314667,1751949049674,-460.0,0.00019726,2]
[370314668,1751949049683,-460.0,0.00019726,2]
[370314669,1751949049693,-460.0,0.00019726,2]
[370314670,1751949049702,-460.0,0.00019726,2]
[370314671,1751949049711,-466.41367637,0.00019726,2]
[370314672,1751949049720,-634.73,0.00019726,2]
[370314673,1751949049730,-460.0,0.00019726,2]
[370314674,1751949049738,-460.0,0.00019726,2]
[370314675,1751949049748,-479.93547127,0.00019726,2]
[370314676,1751949049757,-460.0,0.00019726,2]
[370314677,1751949049766,-460.0,0.00019726,2]
[370314678,1751949049775,-460.0,0.00019726,2]
[370314679,1751949049785,-2062.42,0.00019726,2]
[370314680,1751949049794,-336.2881086,0.00019726,2]
[370314681,1751949049803,-460.0,0.00019726,2]
[370314682,1751949049812,-460.0,0.00019726,2]
[370314683,1751949049822,-460.0,0.00019726,2]
[370314684,1751949049830,-499.47077458,0.00019726,2]
[370314685,1751949049839,-460.0,0.00019726,2]
[370314686,1751949049850,-460.0,0.00019726,2]
[370314687,1751949049860,-460.0,0.00019726,2]
[370314688,1751949049870,-460.0,0.00019726,2]
[370314689,1751949049879,-460.0,0.00019726,2]
[370314690,1751949049889,-460.0,0.00019726,2]
[370314691,1751949049898,-460.0,0.00019726,2]
[370314692,1751949049908,-460.0,0.00019726,2]
[370314693,1751949049917,-464.49736192,0.00019726,2]
[370314694,1751949049928,-460.0,0.00019726,2]
[370314695,1751949049938,-464.2505304,0.00019726,2]
[370314696,1751949049947,-460.0,0.00019726,2]
[370314697,1751949050029,-460.0,0.00019726,2]
[370314698,1751949050045,-462.59618928,0.00019726,2]
[370314699,1751949050054,-460.0,0.00019726,2]
[370314700,1751949050063,-460.0,0.00019726,2]
[370314701,1751949050072,-464.79158474,0.00019726,2]
[370314702,1751949050082,-460.0,0.00019726,2]
[370314703,1751949050091,-460.0,0.00019726,2]
[370314704,1751949050101,-460.0,0.00019726,2]
[370314705,1751949050111,-460.0,0.00019726,2]
[370314706,1751949050122,-460.0,0.00019726,2]
[370314707,1751949050131,-464.50696175,0.00019726,2]
[370314708,1751949050140,-460.0,0.00019726,2]
[370314709,1751949050150,-460.0,0.00019726,2]
[370314710,1751949050159,-461.06148174,0.00019726,2]
[370314711,1751949050169,-460.0,0.00019726,2]
[370314712,1751949050179,-460.0,0.00019726,2]
[370314713,1751949050189,-460.0,0.00019726,2]
[370314714,1751949050198,-460.0,0.00019726,2]
[370314715,1751949050208,-460.0,0.00019726,2]
[370314716,1751949050217,-460.0,0.00019726,2]
[370314717,1751949050228,-222.34960086,0.00019726,2]
[370314718,1751949050238,-460.0,0.00019726,2]
[370314719,1751949050247,-460.0,0.00019726,2]
[370314720,1751949050256,-460.0,0.00019726,2]
[370314721,1751949050267,-460.0,0.00019726,2]
[370314722,1751949050277,-1872.38,0.00019726,2]
[370314723,1751949050287,-460.0,0.00019726,2]
[370314724,1751949050296,-460.0,0.00019726,2]
[370314725,1751949050307,-460.0,0.00019726,2]
[370314726,1751949050319,-407.17220266,0.00019726,2]
[370314727,1751949050329,-298.81683322,0.00019726,2]
[370314728,1751949050340,-460.0,0.00019726,2]
[370314729,1751949050351,-454.95635246,0.00019726,2]
[370314730,1751949050564,-5.04364754,0.00019726,2]
[370314731,1751949050575,-460.0,0.00019726,2]
[370314732,1751949050584,-460.0,0.00019726,2]
[370314733,1751949050594,-460.0,0.00019726,2]
[370314734,1751949050604,-460.0,0.00019726,2]
[370314735,1751949050613,-460.0,0.00019726,2]
[370314736,1751949050623,-471.78,0.00019726,2]
[370314737,1751949050632,-460.0,0.00019726,2]
[370314738,1751949050641,-266.23159714,0.00019726,2]
[370314739,1751949050747,-460.0,0.00019178,2]
[370314740,1751949050756,-193.76840286,0.00019726,2]
[370314741,1751949050765,-501.49,0.00019726,2]
[370314742,1751949050775,-460.0,0.00019726,2]
[370314743,1751949050784,-240.33442751,0.00019726,2]
[370314744,1751949050794,-582.34,0.00019726,2]
[370314745,1751949050803,-3532.55,0.00019726,2]
[370314746,1751949050812,-460.0,0.00019726,2]
[370314747,1751949050821,-460.0,0.00019726,2]
[370314748,1751949050830,-460.0,0.00019726,2]
[370314749,1751949050840,-338.85928075,0.00019726,2]
[370314750,1751949050849,-460.0,0.00019726,2]
[370314751,1751949050862,-1619.33,0.00019726,2]
[370314752,1751949050871,-460.0,0.00019726,2]
[370314753,1751949050880,-460.0,0.00019726,2]
[370314754,1751949050889,-460.0,0.00019726,2]
[370314755,1751949050900,-460.0,0.00019726,2]
[370314756,1751949050909,-460.0,0.00019726,2]
[370314757,1751949050918,-460.0,0.00019726,2]
[370314758,1751949050927,-274.75027664,0.00019726,2]
[370314759,1751949050936,-460.0,0.00019726,2]
[370314760,1751949050946,-460.0,0.00019726,2]
[370314761,1751949050955,-460.0,0.00019726,2]
[370314762,1751949050965,-460.0,0.00019726,2]
[370314763,1751949050973,-155.66144773,0.00019726,2]
[370314764,1751949051073,-460.0,0.00019726,2]
[370314765,1751949051082,-460.0,0.00019726,2]
[370314766,1751949051091,-461.96,0.00019726,2]
[370314767,1751949051101,-460.0,0.00019726,2]
[370314768,1751949051110,-460.0,0.00019726,2]
[370314769,1751949051119,-460.0,0.00019726,2]
[370314770,1751949051128,-460.0,0.00019726,2]
[370314771,1751949051137,-460.0,0.00019726,2]
[370314772,1751949051146,-460.0,0.00019726,2]
[370314773,1751949051156,-511.84991775,0.00019726,2]
[370314774,1751949051165,-465.20345646,0.00019726,2]
[370314775,1751949051174,-460.0,0.00019726,2]
[370314776,1751949051183,-496.62,0.00019726,2]
[370314777,1751949051192,-1354.13,0.00019726,2]
[370314778,1751949051201,-460.0,0.00019726,2]
[370314779,1751949051210,-460.0,0.00019726,2]
[370314780,1751949051219,-460.0,0.00019726,2]
[370314781,1751949051229,-460.0,0.00019726,2]
[370314782,1751949051239,-922.07,0.00019726,2]
[370314783,1751949051248,-460.0,0.00019726,2]
[370314784,1751949051257,-460.0,0.00019726,2]
[370314785,1751949051266,-460.0,0.00019726,2]
[370314786,1751949051275,-460.0,0.00019726,2]
[370314787,1751949051285,-460.0,0.00019726,2]
[370314788,1751949051294,-381.0,0.00019726,2]
[370314789,1751949051303,-472.01111176,0.00019726,2]
[370314790,1751949051313,-1770.45,0.00019726,2]
[370314791,1751949051322,-464.20188112,0.00019726,2]
[370314792,1751949051331,-460.0,0.00019726,2]
[370314793,1751949051340,-460.0,0.00019726,2]
[370314794,1751949051349,-460.0,0.00019726,2]
[370314795,1751949051358,-460.0,0.00019726,2]
[370314796,1751949051368,-553.63,0.00019726,2]
[370314797,1751949051377,-467.92051959,0.00019726,2]
[370314798,1751949051387,-460.0,0.00019726,2]
[370314799,1751949051396,-460.0,0.00019726,2]
[370314800,1751949051406,-460.0,0.00019726,2]
[370314801,1751949051416,-1121.93,0.00019726,2]
[370314802,1751949051426,-460.0,0.00019726,2]
[370314803,1751949051435,-461.83900593,0.00019726,2]
[370314804,1751949051444,-1955.51,0.00019726,2]
[370314805,1751949051455,-460.0,0.00019726,2]
[370314806,1751949051465,-1231.76,0.00019726,2]
[370314807,1751949051475,-465.94155733,0.00019726,2]
[370314808,1751949051485,-460.0,0.00019726,2]
[370314809,1751949051495,-480.15522535,0.00019726,2]
[370314810,1751949051505,-460.0,0.00019726,2]
[370314811,1751949051514,-460.0,0.00019726,2]
[370314812,1751949051524,-462.90170371,0.00019726,2]
[370314813,1751949051534,-460.0,0.00019726,2]
[370314814,1751949051543,-593.32,0.00019726,2]
[370314815,1751949051553,-460.0,0.00019726,2]
[370314816,1751949051562,-374.2230372,0.00019726,2]
[370314817,1751949051572,-1315.87,0.00019726,2]
[370314818,1751949051589,-460.0,0.00019726,2]
[370314819,1751949051614,-460.0,0.00019726,2]
[370314820,1751949051636,-1350.63,0.00019726,2]
[370314821,1751949051659,-464.76332253,0.00019726,2]
[370314822,1751949051684,-467.02949938,0.00019726,2]
[370314823,1751949051705,-460.0,0.00019726,2]
[370314824,1751949051727,-471.72087192,0.00019726,2]
[370314825,1751949051743,-460.0,0.00019726,2]
[370314826,1751949051763,-460.0,0.00019726,2]
[370314827,1751949051782,-460.0,0.00019726,2]
[370314828,1751949051805,-460.0,0.00019726,2]
[370314829,1751949051822,-460.0,0.00019726,2]
[370314830,1751949051838,-273.83835057,0.00019726,2]
[370314831,1751949051859,-460.0,0.00019726,2]
[370314832,1751949051879,-514.76,0.00019726,2]
[370314833,1751949051892,-460.0,0.00019726,2]
[370314834,1751949051908,-872.98,0.00019726,2]
[370314835,1751949051925,-460.0,0.00019726,2]
[370314836,1751949051941,-1817.93,0.00019726,2]
[370314837,1751949051958,-460.0,0.00019726,2]
[370314838,1751949051975,-303.05564761,0.00019726,2]
[370314839,1751949051992,-460.0,0.00019726,2]
[370314840,1751949052009,-460.0,0.00019726,2]
[370314841,1751949052026,-460.0,0.00019726,2]
[370314842,1751949052043,-460.0,0.00019726,2]
[370314843,1751949052060,-504.34,0.00019726,2]
[370314844,1751949052077,-1558.15,0.00019726,2]
[370314845,1751949052094,-502.92509874,0.00019726,2]
[370314846,1751949052112,-460.0,0.00019726,2]
[370314847,1751949052129,-460.0,0.00019726,2]
[370314848,1751949052147,-460.0,0.00019726,2]
[370314849,1751949052160,-460.0,0.00019726,2]
[370314850,1751949052170,-460.0,0.00019726,2]
[370314851,1751949052179,-460.0,0.00019726,2]
[370314852,1751949052189,-460.0,0.00019726,2]
[370314853,1751949052199,-224.01426444,0.00019726,2]
[370314854,1751949052208,-460.0,0.00019726,2]
[370314855,1751949052218,-460.0,0.00019726,2]
[370314856,1751949052229,-3358.32,0.00019726,2]
[370314857,1751949052239,-460.0,0.00019726,2]